Cogmind - Beta 17 @@@ ROGUE MODE // 2026.08.13 @ 21:40:34 Player: biznut Result: Destroyed by L-31 Rogue with Katana Performance ------------- Evolutions (1) 500 Regions Visited (4) 800 Robots Destroyed (10) 50 Value Destroyed (182) 182 Prototype IDs (3) 60 Alien Tech Used (0) 0 Bonus (200) 200 TOTAL SCORE: 1792 Bonus ------- Entered Garrisons 200 Cogmind --------- Core Integrity 0/400 Matter 136/300 Energy 100/100 System Corruption 6% Temperature Cool (0) Movement Core (50) Location -9/Garrison Parts ------- > --- POWER (1) -------- (None) > --- PROPULSION (3) --- (None) > --- UTILITY (3) ------ (None) > --- WEAPON (2) ------- (None) > --- INVENTORY (5) ---- Signal Interpreter Particle Gun Light Assault Rifle Grenade Launcher Peak State ------------ > --- POWER ------------ Ion Engine > --- PROPULSION ------- Aluminum Leg Flight Unit Flight Unit > --- UTILITY ---------- Small Storage Unit Power Shielding Hardened Light Armor Plating > --- WEAPON ----------- Small Laser Particle Gun > --- INVENTORY -------- Ion Engine Signal Interpreter Light Assault Rifle Light Assault Rifle Light Assault Rifle Grenade Launcher Grenade Launcher [Rating: 11] Favorites ----------- Power Ion Engine Engine Ion Engine Propulsion Aluminum Leg Leg Aluminum Leg Flight Unit Flight Unit Utility Small Storage Unit Storage Small Storage Unit Protection Power Shielding Weapon Grenade Launcher Energy Gun Particle Gun Ballistic Gun Light Assault Rifle Launcher Grenade Launcher Build | -11 -10 -9 -9 -9 ------- Run | Yrd Mat Mat Sto Gar Slots Evolved 2 | . . 2 . . Power . | . . . . . Propulsion 1 | . . 1 . . Utility 1 | . . 1 . . Weapon . | . . . . . Parts Attached 17 | 6 4 1 1 5 Power 2 | 1 . . . 1 Engine 2 | 1 . . . 1 Core . | . . . . . Reactor . | . . . . . Propulsion 5 | 2 . . . 3 Treads . | . . . . . Leg 2 | 2 . . . . Wheel . | . . . . . Hover . | . . . . . Flight 3 | . . . . 3 Utility 3 | 1 1 1 . . Device . | . . . . . Storage 1 | 1 . . . . Processor . | . . . . . Hackware . | . . . . . Protection 2 | . 1 1 . . Artifact . | . . . . . Weapon 7 | 2 3 . 1 1 Energy Gun 3 | 1 . . 1 1 Energy Cannon . | . . . . . Ballistic Gun 2 | 1 1 . . . Ballistic Cannon . | . . . . . Launcher 2 | . 2 . . . Special Weapon . | . . . . . Impact Weapon . | . . . . . Slashing Weapon . | . . . . . Piercing Weapon . | . . . . . Special Melee Weapon . | . . . . . Unidentified Prototypes . | . . . . . Parts Lost 9 | . . 1 1 7 Power 2 | . . . . 2 Propulsion 4 | . . 1 . 3 Utility 1 | . . . . 1 Weapon 2 | . . . 1 1 Highest Loss Streak 7 | . . 1 1 7 To Critical Strikes . | . . . . . Average Backups 5 | 1 4 8 8 6 Power . | . 1 1 1 . Propulsion . | . . . . . Utility . | . . 1 1 1 Weapon 4 | . 3 6 6 5 Tool/Special . | . . . . . Unused Backups 1 | . . . . 1 Power . | . . . . . Propulsion . | . . . . . Utility 1 | . . . . 1 Weapon . | . . . . . Tool/Special . | . . . . . Average Slot Usage (%) 78 | . 96 84 77 57 Engine 11 | . 14 11 11 7 Leg 16 | . 28 20 11 3 Flight 3 | . . . . 9 Storage 11 | . 14 11 11 9 Protection 13 | . 10 19 22 13 Energy Gun 6 | . 1 . 11 13 Ballistic Gun 6 | . 6 22 11 . Launcher 8 | . 20 . . . Peak Build Rating 11 | 6 7 9 9 11 Average Rating 6 | 4 6 8 8 6 On Entrance 5 | . 6 7 8 8 Avg Prop Armor Cover (%) 7 | . . . . 7 Naked Turns 32 | . . . . 32 Heaviest Build 21 | 13 17 18 21 20 Greatest Support 20 | 20 20 20 10 12 Greatest Overweight (x) 4 | 1 . 1 2 4 Average Overweight (x) . | . . . 1 . Largest Inventory Capacity 8 | 8 8 8 8 8 Average Capacity 7 | 7 8 8 8 7 Most Carried 8 | 2 8 8 8 8 Average Carried 5 | 1 4 8 8 6 Final Capacity 8 | 8 8 8 8 5 Final Carried 8 | 2 8 8 8 4 Class Distribution -------------------- 94% | Mutant 5% | Scavenger-Mutant Dominant Class ---------------- Mutant | -10/Materials Mutant | -9/Materials Mutant | -9/Storage Mutant | -9/Garrison Resources | -11 -10 -9 -9 -9 ----------- Run | Yrd Mat Mat Sto Gar Matter Collected 308 | 241 29 . . 38 Remotely . | . . . . . Salvage Created 96 | . 58 . . 38 Parts 18 | . 13 . . 5 Haulers Intercepted . | . . . . . Recyclers Shooed 1 | . 1 . . . Parts Field Recycled . | . . . . . Retrieved Matter . | . . . . . Parts Self-Destructed . | . . . . . Prevented . | . . . . . Parts Restored . | . . . . . Kills | -11 -10 -9 -9 -9 ------- Run | Yrd Mat Mat Sto Gar Combat Hostiles Destroyed 8 | . 5 . . 3 Guns 3 | . . . . 3 AOE 5 | . 5 . . . Classes Destroyed 4 | . 4 . . . Builder 1 | . 1 . . . Watcher 1 | . 1 . . . Swarmer 6 | . 3 . . 3 Grunt 2 | . 2 . . . Best Kill Streak 5 | . 5 . . 3 Combat Bots Only 3 | . 3 . . 3 Max Kills in Single Turn 3 | . 3 . . 1 Gunslinging . | . . . . . Exploded 3 | . 3 . . . Melee . | . . . . . Uniques/NPCs Destroyed . | . . . . . Combat | -11 -10 -9 -9 -9 -------- Run | Yrd Mat Mat Sto Gar Hostile Shots Fired 191 | . 37 36 18 100 Missed 71 | . 17 14 6 34 Hits 120 | . 20 22 12 66 Melee 4 | . . . 3 1 Projectile 116 | . 20 22 9 65 Critical Strikes 1 | . . 1 . . Damage Taken 1462 | . 212 251 217 782 Core 455 | . 30 43 55 327 Absorbed by Shields . | . . . . . Redirected to Shielding 30 | . 4 7 7 12 Core Remaining (%) 94 | 100 88 . . . Volleys Fired 10 | . 6 1 . 3 Largest 2 | . 2 2 . 2 Hottest 105 | . 60 40 . 105 Shots Fired 20 | . 12 2 . 6 Gun 8 | . . 2 . 6 Cannon . | . . . . . Launcher 12 | . 12 . . . Special . | . . . . . Kinetic 2 | . . 2 . . Thermal 6 | . . . . 6 Explosive 12 | . 12 . . . Electromagnetic . | . . . . . Robot Hit Streak 5 | . 5 . . 4 Robot Miss Streak 6 | . 3 5 . 6 Penetration Max . | . . . . . Secondary Targets . | . . . . . Shots Hit Robots 9 | . 5 . . 4 Core Hits 20 | . 16 . . 4 Critical Kills . | . . . . . Critical Parts Destroyed . | . . . . . Critical Strikes . | . . . . . Melee Attacks . | . . . . . Impact . | . . . . . Slashing . | . . . . . Piercing . | . . . . . Sneak Attacks . | . . . . . Combat Hostiles . | . . . . . Follow-up Attacks . | . . . . . Damage Inflicted 593 | . 524 8 . 61 Guns 50 | . . . . 50 Cannons . | . . . . . Explosions 524 | . 524 . . . Melee . | . . . . . Ramming 19 | . . 8 . 11 Kinetic . | . . . . . Thermal 50 | . . . . 50 Explosive 524 | . 524 . . . Electromagnetic . | . . . . . Impact . | . . . . . Slashing . | . . . . . Piercing . | . . . . . Highest Corruption 6 | . . . . 6 Average Corruption 3 | . . . . 3 Corruption Purged . | . . . . . Corruption Blocked . | . . . . . Effects 6 | . . . . 6 Message Errors 1 | . . . . 1 Matter Fused 3 | . . . . 3 Heat Flow Errors 1 | . . . . 1 Data Loss (minor) 1 | . . . . 1 Overload Shots . | . . . . . Overflow Damage . | . . . . . Projectiles . | . . . . . Explosions . | . . . . . Melee . | . . . . . Knockbacks . | . . . . . Impact . | . . . . . Kinetic . | . . . . . Secondary . | . . . . . Self-Inflicted Damage 39 | . 34 . . 5 Shots 3 | . 3 . . . Rammed 4 | . . . . 4 Targets Rammed 5 | . . 1 . 4 Kicked 1 | . . 1 . . Crushed . | . . . . . Highest Temperature 160 | . 9 19 . 160 Average Temperature 62 | . 9 13 . 79 Received Heat Transfer 573 | . 18 108 54 393 Siege Activations . | . . . . . Martial Activations . | . . . . . Shielding Activations . | . . . . . Robots Disrupted . | . . . . . Combat Hostiles . | . . . . . Robots Corrupted . | . . . . . Combat Hostiles . | . . . . . Parts Fried . | . . . . . Impact Corruptions . | . . . . . Robots Melted . | . . . . . Combat Hostiles . | . . . . . Parts Melted 1 | . . . . 1 Heat Transferred 124 | . . . . 124 Parts Sabotaged . | . . . . . Parts Stolen . | . . . . . Parts Stripped . | . . . . . Power Chain Reactions . | . . . . . Alert | -11 -10 -9 -9 -9 ------- Run | Yrd Mat Mat Sto Gar Maximum Alert Level . | . . . . . Low Security (%) 100 | 100 100 100 100 100 Level 1 . | . . . . . Level 2 . | . . . . . Level 3 . | . . . . . Level 4 . | . . . . . Level 5 . | . . . . . High Security . | . . . . . Max Security . | . . . . . Peak Influence 182 | . 182 70 8 109 Initial 70 | . . 70 8 . Average 41 | . 51 52 2 45 Influence Increases 406 | . 227 . . 179 Destroy 0b10 Robot/C 160 | . 100 . . 60 Destroy 0b10 Robot/NC 10 | . 10 . . . Destroy Leader 22 | . 22 . . . Successful Hack 28 | . 14 . . 14 Disable Machine 30 | . 30 . . . Destroy Structure 51 | . 51 . . . Lose Combat Pursuer 105 | . . . . 105 Influence Decreases 297 | . 60 147 20 70 Entered New Map 109 | . . 97 12 . Time Decay 108 | . 60 40 8 . Lost Part 80 | . . 10 . 70 Squads Dispatched 3 | . 1 1 1 . Investigation 2 | . 1 . 1 . Extermination . | . . . . . Reinforcement 1 | . . 1 . . Assault . | . . . . . Garrison . | . . . . . Intercept . | . . . . . Searches Triggered . | . . . . . Construction Impeded . | . . . . . Haulers Reinforced . | . . . . . Active Scanning Responses . | . . . . . Cargo Convoy Interrupts . | . . . . . Stealth | -11 -10 -9 -9 -9 --------- Run | Yrd Mat Mat Sto Gar Distress Signals 2 | . 1 1 . . Communications Jammed . | . . . . . Distress Signals . | . . . . . Times Spotted 38 | . 10 5 3 20 Peak Tracking Total 9 | . 5 5 3 9 Tactical Retreats 2 | . . . . 2 Traps | -11 -10 -9 -9 -9 ------- Run | Yrd Mat Mat Sto Gar Traps Triggered 3 | . 1 . 1 1 Indirectly . | . . . . . Trap Hack Attempts . | . . . . . Triggered . | . . . . . Disarmed . | . . . . . Reprogrammed . | . . . . . Reused . | . . . . . Traps Extracted . | . . . . . Installed . | . . . . . Triggered . | . . . . . Machines | -11 -10 -9 -9 -9 ---------- Run | Yrd Mat Mat Sto Gar Machines Disabled 2 | . 2 . . . Max in Single Turn 1 | . 1 . . . Machines Repaired . | . . . . . Machines Dismantled . | . . . . . Machines Sabotaged . | . . . . . Overloaded Fab Kills . | . . . . . Hacking | -11 -10 -9 -9 -9 --------- Run | Yrd Mat Mat Sto Gar Machines Accessed 6 | . 2 2 1 1 Terminals 5 | . 2 2 . 1 Fabricators . | . . . . . Repair Stations . | . . . . . Recycling Units . | . . . . . Scanalyzers . | . . . . . Garrison Access 1 | . . . 1 . Total Hacks 12 | . 3 4 4 1 Successful 4 | . 1 1 1 1 Failed 8 | . 2 3 3 . Catastrophic 1 | . 1 . . . Database Lockouts . | . . . . . Manual . | . . . . . Terminals 8 | . 3 4 . 1 Fabricators . | . . . . . Repair Stations . | . . . . . Recycling Units . | . . . . . Scanalyzers . | . . . . . Garrison Access 4 | . . . 4 . Terminal Hacks 3 | . 1 1 . 1 Prototype ID Bank 1 | . 1 . . . Zone Layout 1 | . . 1 . . Patrol Navigation 1 | . . . . 1 Fabricator Hacks . | . . . . . Repair Station Hacks . | . . . . . Recycling Unit Hacks . | . . . . . Scanalyzer . | . . . . . Garrison Access Hacks 1 | . . . 1 . Unlock Access 1 | . . . 1 . Unauthorized Hacks . | . . . . . Terminals . | . . . . . Fabricators . | . . . . . Repair Stations . | . . . . . Recycling Units . | . . . . . Scanalyzers . | . . . . . Garrison Access . | . . . . . Data Cores Recovered . | . . . . . Used . | . . . . . Hacking Detections 5 | . 2 1 1 1 Full Trace Events 1 | . . . 1 . Feedback Events . | . . . . . Feedback Blocked . | . . . . . Robot Schematics Acquired . | . . . . . Robots Built . | . . . . . Authchips . | . . . . . Time . | . . . . . Total Robot Build Rating . | . . . . . Part Schematics Acquired . | . . . . . Parts Built . | . . . . . Authchips . | . . . . . Time . | . . . . . Total Part Build Rating . | . . . . . Part Studies Acquired . | . . . . . Parts Repaired . | . . . . . Time . | . . . . . Parts Recycled . | . . . . . Recycled Matter . | . . . . . Retrieved Matter . | . . . . . Retrieved Components . | . . . . . Parts Scanalyzed . | . . . . . Part Schematics Acquired . | . . . . . Parts Damaged . | . . . . . Bothacking | -11 -10 -9 -9 -9 ------------ Run | Yrd Mat Mat Sto Gar Used RIF Installer . | . . . . . Robots Hacked . | . . . . . Non-combat . | . . . . . Combat . | . . . . . Robot Hacks Applied . | . . . . . Relay Couplers Released . | . . . . . Fabnet Peak Effective % . | . . . . . Robots Rewired . | . . . . . Allies Hacked . | . . . . . Hacks Repelled . | . . . . . Allies | -11 -10 -9 -9 -9 -------- Run | Yrd Mat Mat Sto Gar Total Allies . | . . . . . Largest Group . | . . . . . Highest-Rated Group . | . . . . . Highest-Rated Ally . | . . . . . Total Orders . | . . . . . Ally Attacks . | . . . . . Total Damage . | . . . . . Kills . | . . . . . Allies Corrupted . | . . . . . Allies Melted . | . . . . . Intel | -11 -10 -9 -9 -9 ------- Run | Yrd Mat Mat Sto Gar Active Infowar (turns) . | . . . . . Robot Analysis Total . | . . . . . Derelict Logs Recovered . | . . . . . Drone Launches . | . . . . . Drone Recoveries . | . . . . . Exploration | -11 -10 -9 -9 -9 ------------- Run | Yrd Mat Mat Sto Gar Turns Passed 744 | 66 289 86 54 249 Spaces Moved 529 | 47 211 65 23 183 Core 85 | 8 . . . 77 Treads . | . . . . . Legs 367 | 39 211 65 23 29 Wheels . | . . . . . Hover . | . . . . . Flight 77 | . . . . 77 Fastest Speed 50 | 50 120 120 190 50 Average Speed 124 | 118 120 124 223 119 Slowest Speed 370 | 190 120 190 260 370 Overloaded Moves . | . . . . . Propulsion Burnouts . | . . . . . Robots Hopped . | . . . . . Potential Cave-ins . | . . . . . Cave-ins Triggered . | . . . . . Exploration Rate (%) 17 | 3 35 8 5 35 Regions Visited 4 Branch Regions 1 Pre-discovered Areas . | . . . . . Known Exits Taken 1 | . . . 1 . Unknown Exits Taken 3 | 1 1 1 . . Scrap Searched . | . . . . . Spaces Dug . | . . . . . Terrain Destroyed 63 | . 63 . . . Melee . | . . . . . Projectile . | . . . . . AOE 63 | . 63 . . . Terrain Rammed . | . . . . . Walls Destroyed . | . . . . . Machines Disabled . | . . . . . Actions | -11 -10 -9 -9 -9 --------- Run | Yrd Mat Mat Sto Gar Total 589 | 55 232 68 26 208 Wait 16 | . 5 1 1 9 Move 524 | 46 210 64 22 182 Hop . | . . . . . Pick Up 9 | 3 6 . . . Fast Attach 11 | 5 1 1 1 3 Attach 3 | 1 . . . 2 Detach 2 | . . . . 2 Swap 5 | . 4 . 1 . Drop 4 | . . . 1 3 Fire 10 | . 6 1 . 3 Melee . | . . . . . Ram 4 | . . . . 4 Kick 1 | . . 1 . . Crush . | . . . . . Escape Stasis . | . . . . . Rewire . | . . . . . Trap . | . . . . . Miscellaneous . | . . . . . Route ------- -11/Scrapyard -10/Materials -9/Materials -9/Storage -9/Garrison (discovered 1 exit: [*Mat]) History --------- Turn | Location | Event 12 | -11/Scrapyard | Discovered new exit (range 16) 67 | -11/Scrapyard | Entered Materials 305 | -10/Materials | Build established: Mutant 337 | -10/Materials | Discovered new exit (range 14) 356 | -10/Materials | Entered another Materials area 356 | -9/Materials | Evolved 2 slots: Propulsion x1, Utility x1 369 | -9/Materials | Discovered new exit (range 16) 442 | -9/Materials | Entered Storage 493 | -9/Storage | Identified exit to Garrison 496 | -9/Storage | Entered Garrison 602 | -9/Garrison | Triggered checkpoint 603 | -9/Garrison | Triggered checkpoint 656 | -9/Garrison | Discovered new exit (range 10) 674 | -9/Garrison | Attempted to access garrison exit controls, blocked by remote lockdown 679 | -9/Garrison | Core integrity fell below 50% 707 | -9/Garrison | Lost 7 parts (2p3n1u1w) 718 | -9/Garrison | Triggered checkpoint 737 | -9/Garrison | Core integrity fell below 20% 745 | -9/Garrison | Destroyed by L-31 Rogue with Katana Last Messages --------------- 00658_ Slammed into G-34 Mercenary. 00663_ G-34 Mercenary suffers critical hit (Burn). 00663_ G-34 Mercenary destroyed. 00674_ Attempting to access garrison exit controls... 00674_ Remote lockdown engaged. 00674_ Flight Unit destroyed. 00676_ Ion Engine destroyed. 00689_ |TVYS1AB/SHO>C 7LRHH/NKDQJL DU%KFGP 00705_ Slammed into G-47 Trooper. 00706_ Slammed into G-34 Mercenary. 00706_ Destabilizing: System corrupted (+1). 00708_ System corrupted: Matter fused (-9). 00713_ Dropped Sml. Storage Unit. 00718_ Beams of light sweep through the air. An alarm sounds. 00738_ Slammed into G-47 Trooper. 00738_ Destabilizing: System corrupted (+2). 00740_ Dropped Lgt. Assault Rifle. Map ----- +----------------------------------------------------+ | ???????????????????????????????????????????# | | ???????????????????????????????????????????# | | ??????????????????????###################### | | ??????????????????????# | | ??????????????????????# | | ??????????????????????# ################### | | ??????????????????????# #??? ?????????????? | | ??????????????????????# #??? ?????????????? | | ??????????????????????#=%#??# #????????????? | | ??????????????????????# #??# ????????????? | | ??????????????????????# #??# #????????????? | | ??????????????????????# #??# #????????????? | | ??????????????????????# #??# #????????????? | | ??????????????????????# #### ############?? | | ??????????????????????# ## ## ### | | ??????????????????????# !< / ## # | | ??????????????????????# ]![## ## ### | | ??????????????????????# #### ## " ### | | ????????#####?????????# #??# """ """"# | | ???????## #?????????# #??#### " "### | | ???????# ##?????????+ #?????# "#?? | | ???????# #?????????# #?????# " "#?? | | ???????# #???#####?# #?????# """""#?? | | ???????#### #???# #?# #?????## ########?? | | ??????????# ##### ### ######?###????????? | | ??????????#[ gg @g g ????????? | | ??????????# gg l / ????????? | | ??????????## #################???????????? | | ??????????#"""""#??????????????????????????? | | ??????????#######??????????????????????????? | | ???????????????????????????????????????????? | | ???????????????????????????????????????????? | | ???????????????????????????????????????????? | | ???????????????????????????????????????????? | | ???????????????????????????????????????????? | | ???????????????????????????????????????????? | | ???????????????????????????????????????????? | | ???????????????????????????????????????????? | | | | | | | | | | | | | | | | | | | | | | | | | +----------------------------------------------------+ Best States ------------- Heat Dissipation 28 Energy Generation 10 Energy Capacity 250 Matter Stores 281 Matter Capacity 300 Sight Range 16 Terrain Scan Density 10 Armor Coverage 150 Power Shielding 33 Evasion (%) 55 Item Schematics ----------------- None Robot Schematics ------------------ None Fabricated ------------ Nothing Repaired ---------- Nothing Studied --------- None Alien Tech Used ----------------- None Achievements -------------- None Challenges ------------ None Game ------ Seed AssemblyRagnarokCyclogen Manual? 0 Play Time 00:12:58 Cumulative 22.5 hours Start 2026.08.13 @ 21:30:39 End 2026.08.13 @ 21:40:34 Sessions 1 Manual Loads 0 Difficulty Rogue Special Mode None Game No. 32 Rogue 32 Adventurer 0 Explorer 0 Win Type - Total 0 Types 0/0/0/0/0/0/0/0/0/0 Lore% 12 Gallery% 15 Achievement% 13 Wizard Run 0 Options --------- Layout 1 ASCII 0 Keyboard 1 Movement Numpad Keybinds 1 Fullscreen 2 Font 32/SmallcapsGlow Map View 50x40 Zoom Use 16% Tactical HUD 1 Map Filters NONE Filters NONE Steam 1 RUN: 817e0dad-a62d-4165-95c9-013d986c8f65